fUSD/lending_fUSD_20260524
["ID","MTS","AMOUNT","RATE_DAILY","PERIOD"]
[422891063,1779583842000,-623.58710447,0.00023664,2]
[422891035,1779583842000,-206.46373247,0.00023664,2]
[422891066,1779583842000,-328.35616187,0.00023664,2]
[422891072,1779583842000,-176.44993098,0.00023664,2]
[422891073,1779583842000,-152.0,0.00023664,2]
[422891080,1779583842000,-152.0,0.00023664,2]
[422891078,1779583842000,-152.0,0.00023664,2]
[422891082,1779583842000,-152.0,0.00023664,2]
[422891086,1779583842000,-152.0,0.00023664,2]
[422891084,1779583842000,-152.0,0.00023664,2]
[422891090,1779583842000,-152.0,0.00023664,2]
[422891088,1779583842000,-152.0,0.00023664,2]
[422891092,1779583842000,-152.0,0.00023664,2]
[422891093,1779583842000,-152.0,0.00023664,2]
[422891096,1779583842000,-152.0,0.00023664,2]
[422890964,1779583842000,-181.07467,0.00023663,2]
[422891069,1779583842000,-152.0,0.00023664,2]
[422891043,1779583842000,-151.0,0.00023664,2]
[422891076,1779583842000,-152.0,0.00023664,2]
[422891031,1779583842000,-200.0,0.00023664,2]
[422891033,1779583842000,-500.0,0.00023664,2]
[422890969,1779583842000,-557.54972,0.00023663,2]
[422890971,1779583842000,-557.54972,0.00023663,2]
[422890974,1779583842000,-557.54972,0.00023663,2]
[422890987,1779583842000,-215.694958,0.00023663,2]
[422890976,1779583842000,-557.54972,0.00023663,2]
[422890983,1779583842000,-215.694958,0.00023663,2]
[422890980,1779583842000,-151.0,0.00023663,2]
[422890985,1779583842000,-215.694958,0.00023663,2]
[422890981,1779583842000,-155.075288,0.00023663,2]
[422890991,1779583842000,-237.882912,0.00023663,2]
[422890992,1779583842000,-237.882912,0.00023663,2]
[422890994,1779583842000,-237.882912,0.00023663,2]
[422890999,1779583842000,-2246.857228,0.00023663,2]
[422890978,1779583842000,-151.0,0.00023663,2]
[422890989,1779583842000,-215.694958,0.00023663,2]
[422891029,1779583842000,-181.08010149,0.00023664,2]
[422890997,1779583842000,-237.882912,0.00023663,2]
[422891025,1779583842000,-8260.13072238,0.00023664,2]
[422891027,1779583842000,-3597.61791044,0.00023664,2]
[422891010,1779583842000,-151.0,0.00023663,2]
[422891023,1779583842000,-151.0,0.00023664,2]
[422891007,1779583842000,-151.0,0.00023663,2]
[422891021,1779583842000,-174.61919141,0.00023664,2]
[422891019,1779583842000,-743.50770149,0.00023664,2]
[422891013,1779583842000,-599.60298507,0.00023664,2]
[422891001,1779583842000,-2246.857228,0.00023663,2]
[422891003,1779583842000,-2246.857228,0.00023663,2]
[422891016,1779583842000,-1235.18214925,0.00023664,2]
[422891005,1779583842000,-2246.857228,0.00023663,2]
[422891152,1779583843000,-557.54971,0.00023773,2]
[422891150,1779583843000,-557.54972,0.00023773,2]
[422891146,1779583843000,-557.54972,0.00023773,2]
[422891155,1779583843000,-151.0,0.00023773,2]
[422891161,1779583843000,-215.694958,0.00023773,2]
[422891159,1779583843000,-215.694958,0.00023773,2]
[422891148,1779583843000,-557.54972,0.00023773,2]
[422891157,1779583843000,-151.0,0.00023773,2]
[422891163,1779583843000,-215.694958,0.00023773,2]
[422891171,1779583843000,-237.882912,0.00023773,2]
[422891165,1779583843000,-215.694951,0.00023773,2]
[422891180,1779583843000,-2246.857228,0.00023773,2]
[422891169,1779583843000,-237.882912,0.00023773,2]
[422891173,1779583843000,-237.882921,0.00023773,2]
[422891184,1779583843000,-151.0,0.00023773,2]
[422891182,1779583843000,-2246.85722258,0.00023773,2]
[422891144,1779583843000,-181.074678,0.00023773,2]
[422891175,1779583843000,-2246.857228,0.00023773,2]
[422891167,1779583843000,-237.882912,0.00023773,2]
[422891142,1779583843000,-181.07467,0.00023773,2]
[422891109,1779583843000,-373.07297731,0.00023719,2]
[422891128,1779583843000,-151.0,0.00023773,2]
[422891178,1779583843000,-2246.857228,0.00023773,2]
[422891102,1779583843000,-500.0,0.00023711,2]
[422891104,1779583843000,-8565.75555911,0.00023719,2]
[422891106,1779583843000,-500.0,0.00023719,2]
[422891113,1779583843000,-151.0,0.00023719,2]
[422891098,1779583843000,-417.29645751,0.00023669,2]
[422891111,1779583843000,-151.0,0.00023719,2]
[422891115,1779583843000,-151.0,0.00023719,2]
[422891140,1779583843000,-181.07467,0.00023773,2]
[422891117,1779583843000,-264.312192,0.00023719,2]
[422891119,1779583843000,-151.0,0.00023773,2]
[422891125,1779583843000,-151.0,0.00023773,2]
[422891135,1779583843000,-291.011572,0.00023773,2]
[422891138,1779583843000,-181.07467,0.00023773,2]
[422891130,1779583843000,-291.01157,0.00023773,2]
[422891134,1779583843000,-291.01157,0.00023773,2]
[422891123,1779583843000,-151.0,0.00023773,2]
[422891132,1779583843000,-291.01157,0.00023773,2]
[422891121,1779583843000,-151.0,0.00023773,2]
[422891186,1779583843000,-151.0,0.00023773,2]
[422891100,1779583843000,-322.85310107,0.00023669,2]
[422891192,1779583843000,-289.53851418,0.00023774,2]
[422891236,1779583843000,-344.0,0.00024,2]
[422891240,1779583843000,-976.0,0.00024,2]
[422891242,1779583843000,-1805.86151176,0.00024014,2]
[422891244,1779583843000,-3639.44326456,0.00024049,2]
[422891280,1779583843000,-151.0,0.00024049,2]
[422891278,1779583843000,-6108.99721771,0.00024049,2]
[422891282,1779583843000,-151.0,0.00024103,2]
[422891284,1779583843000,-151.0,0.00024103,2]
[422891286,1779583843000,-7846.18157692,0.00024104,2]
[422891269,1779583843000,-0.1347961,0.0002327,7]
[422891274,1779583843000,-455.0,0.00023663,7]
[422891288,1779583843000,-3200.12192562,0.00024104,2]
[422891272,1779583843000,-298.8652039,0.0002327,7]
[422891276,1779583843000,-903.73261565,0.00024049,2]
[422891290,1779583843000,-151.0,0.00024104,2]
[422891298,1779583843000,-444.0,0.00023719,7]
[422891292,1779583843000,-2267.92635054,0.00024129,2]
[422891294,1779583843000,-917.0586601,0.00024159,2]
[422891188,1779583843000,-8882.6885148,0.00023774,2]
[422891238,1779583843000,-248.0,0.00024,2]
[422891234,1779583843000,-634.0,0.00024,2]
[422891299,1779583843000,-206.40786659,0.00024159,2]
[422891229,1779583843000,-159.0,0.00024,5]
[422891190,1779583843000,-500.0,0.00023774,2]
[422891194,1779583843000,-151.0,0.00023774,2]
[422891206,1779583843000,-151.0,0.00023938,2]
[422891196,1779583843000,-9211.34798984,0.00023829,2]
[422891209,1779583843000,-151.0,0.00023938,2]
[422891207,1779583843000,-151.0,0.00023938,2]
[422891213,1779583843000,-500.0,0.00023939,2]
[422891202,1779583843000,-500.0,0.00023884,2]
[422891204,1779583843000,-151.0,0.00023938,2]
[422891211,1779583843000,-9905.59807649,0.00023939,2]
[422891198,1779583843000,-500.0,0.00023829,2]
[422891228,1779583843000,-151.0,0.00023994,2]
[422891201,1779583843000,-9552.16786547,0.00023884,2]
[422891221,1779583843000,-10272.10520532,0.00023994,2]
[422891219,1779583843000,-151.0,0.00023939,2]
[422891232,1779583843000,-522.0,0.00024,2]
[422891200,1779583843000,-151.0,0.00023829,2]
[422891215,1779583843000,-151.0,0.00023939,2]
[422891203,1779583843000,-151.0,0.00023884,2]
[422891217,1779583843000,-151.0,0.00023939,2]
[422891553,1779583845000,-1162.00685153,0.00024159,2]
[422891670,1779583846000,-161.51,0.00024658,2]
[422891660,1779583846000,-3635.0,0.00024301,2]
[422891661,1779583846000,-418.0,0.00024301,2]
[422891662,1779583846000,-7426.65597291,0.00024324,2]
[422891668,1779583846000,-1000.0,0.00024658,2]
[422891672,1779583846000,-161.6,0.00024658,2]
[422891659,1779583846000,-1271.0,0.00024301,2]
[422891688,1779583846000,-151.0,0.000249,2]
[422891664,1779583846000,-1241.5,0.00024324,2]
[422891663,1779583846000,-151.0,0.00024324,2]
[422891673,1779583846000,-478.75,0.00024675,2]
[422891669,1779583846000,-247.49572372,0.00024658,2]
[422891665,1779583846000,-151.0,0.00024379,2]
[422891676,1779583846000,-799.54513344,0.0002476,2]
[422891686,1779583846000,-161.6,0.00024886,7]
[422891653,1779583846000,-151.0,0.00024214,2]
[422891667,1779583846000,-362.15,0.00024658,2]
[422891656,1779583846000,-151.0,0.00024269,2]
[422891646,1779583846000,-181.08010149,0.00024212,2]
[422891657,1779583846000,-1355.0,0.00024301,2]
[422891687,1779583846000,-162.35764207,0.000249,2]
[422891637,1779583846000,-9169.54335392,0.00024159,2]
[422891638,1779583846000,-151.0,0.00024159,2]
[422891639,1779583846000,-833.0,0.00024159,10]
[422891642,1779583846000,-500.0,0.00024169,14]
[422891641,1779583846000,-594.0,0.00024159,10]
[422891640,1779583846000,-381.0,0.00024159,10]
[422891644,1779583846000,-1280.88388877,0.00024212,2]
[422891651,1779583846000,-187.78006524,0.00024212,2]
[422891643,1779583846000,-391.728846,0.00024212,2]
[422891647,1779583846000,-200.0,0.00024212,2]
[422891648,1779583846000,-187.78006524,0.00024212,2]
[422891649,1779583846000,-187.78006524,0.00024212,2]
[422891650,1779583846000,-290.26104002,0.00024212,2]
[422891655,1779583846000,-12318.36988822,0.00024269,2]
[422891654,1779583846000,-2076.70951952,0.00024223,2]
[422891658,1779583846000,-625.0,0.00024301,2]
[422891652,1779583846000,-11878.85235123,0.00024214,2]
[422891645,1779583846000,-771.01748644,0.00024212,2]
[422891675,1779583846000,-1328.27659266,0.0002476,2]
[422891666,1779583846000,-151.0,0.00024434,2]
[422891679,1779583846000,-194.72792766,0.0002476,2]
[422891710,1779583846000,-150.0,0.00025242,2]
[422891708,1779583846000,-150.0,0.00025242,2]
[422891709,1779583846000,-150.0,0.00025242,2]
[422891702,1779583846000,-931.0,0.0002507,2]
[422891705,1779583846000,-161.51,0.00025115,30]
[422891707,1779583846000,-150.0,0.00025242,2]
[422891704,1779583846000,-648.74281,0.000251,2]
[422891711,1779583846000,-150.0,0.00025242,2]
[422891706,1779583846000,-161.6,0.00025115,30]
[422891712,1779583846000,-1840.316655,0.00025254,2]
[422891714,1779583846000,-6783.6042211,0.00025254,2]
[422891720,1779583846000,-201.93286098,0.00025308,2]
[422891721,1779583846000,-201.93286098,0.00025308,2]
[422891718,1779583846000,-194.72792766,0.00025308,2]
[422891717,1779583846000,-829.12830338,0.00025308,2]
[422891716,1779583846000,-1377.42282658,0.00025308,2]
[422891715,1779583846000,-648.74281,0.000253,2]
[422891677,1779583846000,-187.78006524,0.0002476,2]
[422891713,1779583846000,-469.6779816,0.00025254,2]
[422891703,1779583846000,-709.0,0.00025082,2]
[422891719,1779583846000,-200.0,0.00025308,2]
[422891699,1779583846000,-156.587,0.00025033,2]
[422891678,1779583846000,-200.0,0.0002476,2]
[422891700,1779583846000,-3730.72977313,0.00025033,2]
[422891680,1779583846000,-194.72792766,0.0002476,2]
[422891682,1779583846000,-194.72792766,0.0002476,2]
[422891681,1779583846000,-301.0006985,0.0002476,2]
[422891685,1779583846000,-161.51,0.00024886,7]
[422891683,1779583846000,-1896.82,0.00024767,14]
[422891689,1779583846000,-648.74281,0.000249,2]
[422891691,1779583846000,-27001.08787838,0.00025,2]
[422891684,1779583846000,-200.0,0.000248,2]
[422891696,1779583846000,-346.0,0.00025,2]
[422891690,1779583846000,-500.0,0.000249,9]
[422891694,1779583846000,-527.92618535,0.00025,2]
[422891692,1779583846000,-150.6036516,0.00025,2]
[422891695,1779583846000,-639.51912908,0.00025,2]
[422891693,1779583846000,-150.6,0.00025,2]
[422891701,1779583846000,-187.78006524,0.00025033,2]
[422891697,1779583846000,-264.23846563,0.00025,2]
[422891698,1779583846000,-977.68441305,0.00025,2]
[422891781,1779583847000,-2000.0,0.00026708,2]
[422891780,1779583847000,-690.76,0.00026632,2]
[422891779,1779583847000,-165.96,0.00026432,2]
[422891787,1779583847000,-2000.0,0.00026746,2]
[422891786,1779583847000,-2000.0,0.00026708,2]
[422891777,1779583847000,-217.15233878,0.00026404,2]
[422891778,1779583847000,-335.66323249,0.00026404,2]
[422891765,1779583847000,-3868.76677473,0.00026402,2]
[422891799,1779583847000,-308.0,0.000268,2]
[422891776,1779583847000,-217.15233878,0.00026404,2]
[422891788,1779583847000,-2000.0,0.00026746,2]
[422891784,1779583847000,-2000.0,0.00026708,2]
[422891796,1779583847000,-709.0,0.00026746,3]
[422891785,1779583847000,-2000.0,0.00026708,2]
[422891790,1779583847000,-2000.0,0.00026746,2]
[422891789,1779583847000,-2000.0,0.00026746,2]
[422891793,1779583847000,-2000.0,0.00026746,2]
[422891791,1779583847000,-2000.0,0.00026746,2]
[422891792,1779583847000,-2000.0,0.00026746,2]
[422891797,1779583847000,-1000.0,0.000268,20]
[422891795,1779583847000,-200.0,0.00026746,2]
[422891794,1779583847000,-2000.0,0.00026746,2]
[422891798,1779583847000,-315.0,0.000268,2]
[422891800,1779583847000,-2267.92635054,0.00026843,2]
[422891763,1779583847000,-162.380719,0.00026402,2]
[422891783,1779583847000,-2000.0,0.00026708,2]
[422891772,1779583847000,-1481.2378076,0.00026404,2]
[422891736,1779583847000,-2076.70951952,0.00025749,2]
[422891769,1779583847000,-500.0,0.00026403,2]
[422891723,1779583847000,-312.13772435,0.00025308,2]
[422891726,1779583847000,-2000.0,0.00025361,2]
[422891725,1779583847000,-301.94269334,0.00025308,2]
[422891730,1779583847000,-1000.0,0.000256,15]
[422891728,1779583847000,-648.74281,0.000255,2]
[422891729,1779583847000,-1000.0,0.000256,2]
[422891731,1779583847000,-709.0,0.00025637,2]
[422891732,1779583847000,-648.74281,0.000257,2]
[422891742,1779583847000,-201.93286098,0.00025856,2]
[422891734,1779583847000,-1000.0,0.000257,2]
[422891740,1779583847000,-859.8060506,0.00025856,2]
[422891738,1779583847000,-1428.38747117,0.00025856,2]
[422891771,1779583847000,-646.65982734,0.00026403,2]
[422891744,1779583847000,-200.0,0.00025856,2]
[422891749,1779583847000,-209.40437684,0.00025856,2]
[422891752,1779583847000,-648.74281,0.000259,2]
[422891751,1779583847000,-323.68682015,0.00025856,2]
[422891754,1779583847000,-590.36,0.00026008,5]
[422891767,1779583847000,-269.02061992,0.00026402,2]
[422891757,1779583847000,-1805.86151176,0.00026192,2]
[422891770,1779583847000,-599.60298507,0.00026403,2]
[422891758,1779583847000,-709.0,0.00026192,3]
[422891773,1779583847000,-891.61887448,0.00026404,2]
[422891775,1779583847000,-200.0,0.00026404,2]
[422891760,1779583847000,-1241.5,0.00026296,2]
[422891774,1779583847000,-209.40437684,0.00026404,2]
[422891746,1779583847000,-209.40437684,0.00025856,2]
[422891802,1779583847000,-1536.04360648,0.00026952,2]
[422891782,1779583847000,-2000.0,0.00026708,2]
[422891801,1779583847000,-924.60877283,0.00026952,2]
[422891829,1779583847000,-577.48,0.000274,2]
[422891827,1779583847000,-500.0,0.000274,2]
[422891835,1779583847000,-922.52,0.000274,2]
[422891838,1779583847000,-837.53,0.000274,2]
[422891847,1779583847000,-1204.543,0.00027521,16]
[422891837,1779583847000,-162.47,0.000274,2]
[422891848,1779583847000,-165.856,0.00027521,16]
[422891839,1779583847000,-958.81929743,0.000275,2]
[422891840,1779583847000,-1592.87721992,0.000275,2]
[422891841,1779583847000,-225.18697532,0.000275,2]
[422891842,1779583847000,-200.0,0.000275,2]
[422891843,1779583847000,-233.5188934,0.000275,2]
[422891828,1779583847000,-700.0,0.000274,2]
[422891844,1779583847000,-233.5188934,0.000275,2]
[422891846,1779583847000,-150.0,0.00027521,2]
[422891849,1779583847000,-200.0,0.00027529,2]
[422891854,1779583847000,-1868.42,0.0002755,30]
[422891852,1779583847000,-153.82,0.0002755,2]
[422891853,1779583847000,-153.9,0.0002755,2]
[422891850,1779583847000,-1075.22,0.0002755,30]
[422891855,1779583847000,-150.0,0.00027566,2]
[422891858,1779583847000,-1868.42,0.00027572,7]
[422891856,1779583847000,-1075.22,0.00027572,7]
[422891857,1779583847000,-2386.07,0.00027572,7]
[422891859,1779583847000,-153.82,0.00027594,7]
[422891812,1779583847000,-5000.0,0.00027124,2]
[422891845,1779583847000,-261.24,0.00027518,14]
[422891836,1779583847000,-615.01,0.000274,2]
[422891851,1779583847000,-2386.07,0.0002755,30]
[422891832,1779583847000,-600.0,0.000274,2]
[422891834,1779583847000,-400.0,0.000274,2]
[422891803,1779583847000,-217.15233878,0.00026952,2]
[422891805,1779583847000,-225.18697532,0.00026952,2]
[422891804,1779583847000,-200.0,0.00026952,2]
[422891807,1779583847000,-180.10487678,0.00026952,2]
[422891808,1779583847000,-194.17,0.00027,2]
[422891810,1779583847000,-5000.0,0.00027124,2]
[422891806,1779583847000,-225.18697532,0.00026952,2]
[422891809,1779583847000,-5000.0,0.00027124,2]
[422891813,1779583847000,-5000.0,0.00027124,2]
[422891816,1779583847000,-1355.0,0.00027301,2]
[422891817,1779583847000,-1271.0,0.00027301,2]
[422891815,1779583847000,-2076.70951952,0.00027274,2]
[422891811,1779583847000,-5000.0,0.00027124,2]
[422891819,1779583847000,-418.0,0.00027301,2]
[422891833,1779583847000,-600.0,0.000274,2]
[422891818,1779583847000,-3635.0,0.00027301,2]
[422891825,1779583847000,-11733.17,0.00027397,10]
[422891831,1779583847000,-900.0,0.000274,2]
[422891826,1779583847000,-800.0,0.000274,2]
[422891822,1779583847000,-300.0,0.00027397,2]
[422891830,1779583847000,-384.99,0.000274,2]
[422891824,1779583847000,-362.15,0.00027397,2]
[422891821,1779583847000,-1500.0,0.00027397,2]
[422891823,1779583847000,-1000.0,0.00027397,20]
[422891820,1779583847000,-709.0,0.00027301,4]
[422891814,1779583847000,-352.76895964,0.00027225,6]
[422891886,1779583848000,-1075.22,0.00027892,30]
[422891881,1779583848000,-153.82,0.00027862,7]
[422891885,1779583848000,-150.00000001,0.00027888,7]
[422891880,1779583848000,-709.0,0.00027856,4]
[422891882,1779583848000,-153.9,0.00027862,7]
[422891883,1779583848000,-237.52073193,0.00027888,7]
[422891884,1779583848000,-150.0,0.00027888,7]
[422891889,1779583848000,-153.82,0.00027906,30]
[422891893,1779583848000,-150.0,0.00027979,2]
[422891887,1779583848000,-2386.07,0.00027892,30]
[422891891,1779583848000,-153.82,0.00027951,2]
[422891894,1779583848000,-156.07399427,0.00027989,7]
[422891890,1779583848000,-153.9,0.00027906,30]
[422891892,1779583848000,-153.9,0.00027951,2]
[422891879,1779583848000,-500.0,0.00027837,14]
[422891896,1779583848000,-153.82,0.00027996,7]
[422891888,1779583848000,-1868.42,0.00027892,30]
[422891878,1779583848000,-153.9,0.00027817,2]
[422891866,1779583848000,-153.82,0.00027728,7]
[422891876,1779583848000,-153.9,0.00027773,30]
[422891898,1779583848000,-5000.70804504,0.00028,30]
[422891861,1779583848000,-153.82,0.00027639,30]
[422891862,1779583848000,-153.9,0.00027639,30]
[422891860,1779583848000,-153.9,0.00027594,7]
[422891863,1779583848000,-150.0,0.00027666,30]
[422891864,1779583848000,-153.82,0.00027683,2]
[422891865,1779583848000,-153.9,0.00027683,2]
[422891877,1779583848000,-153.82,0.00027817,2]
[422891867,1779583848000,-153.9,0.00027728,7]
[422891869,1779583848000,-1075.22,0.00027732,2]
[422891870,1779583848000,-2386.07,0.00027732,2]
[422891872,1779583848000,-162.53,0.00027767,2]
[422891875,1779583848000,-153.82,0.00027773,30]
[422891874,1779583848000,-4011.9111454,0.00027771,2]
[422891873,1779583848000,-168.3888056,0.00027771,2]
[422891871,1779583848000,-1868.42,0.00027732,2]
[422891868,1779583848000,-5800.0,0.00027731,2]
[422891899,1779583848000,-153.82,0.0002804,30]
[422891902,1779583848000,-1651.81367706,0.00028048,2]
[422891901,1779583848000,-470.63505886,0.00028048,2]
[422891917,1779583848000,-1482.93,0.00028082,7]
[422891921,1779583848000,-215.31523495,0.000281,7]
[422891923,1779583848000,-154.01,0.0002813,7]
[422891925,1779583848000,-1075.22,0.00028213,2]
[422891927,1779583848000,-1868.42,0.00028213,2]
[422891924,1779583848000,-263.54443968,0.000282,5]
[422891926,1779583848000,-2386.07,0.00028213,2]
[422891928,1779583848000,-1868.43,0.00028213,2]
[422891933,1779583848000,-350.0,0.00028315,120]
[422891931,1779583848000,-150.0,0.00028242,2]
[422891930,1779583848000,-150.0,0.00028242,2]
[422891932,1779583848000,-1241.5,0.00028267,2]
[422891934,1779583848000,-350.0,0.00028315,120]
[422891935,1779583848000,-234.0,0.00028315,120]
[422891937,1779583848000,-300.0,0.00028315,120]
[422891900,1779583848000,-153.9,0.0002804,30]
[422891936,1779583848000,-300.0,0.00028315,120]
[422891914,1779583848000,-1350.61324175,0.00028081,2]
[422891920,1779583848000,-153.9,0.00028085,2]
[422891929,1779583848000,-150.0,0.00028242,2]
[422891918,1779583848000,-7604.37,0.00028082,7]
[422891903,1779583848000,-233.5188934,0.00028048,2]
[422891916,1779583848000,-151.0,0.00028082,2]
[422891895,1779583848000,-156.07399426,0.00027989,30]
[422891905,1779583848000,-347.17379265,0.00028048,2]
[422891904,1779583848000,-200.0,0.00028048,2]
[422891907,1779583848000,-1075.22,0.00028053,7]
[422891908,1779583848000,-2386.07,0.00028053,7]
[422891897,1779583848000,-153.9,0.00027996,7]
[422891906,1779583848000,-242.15909246,0.00028048,2]
[422891909,1779583848000,-1868.42,0.00028053,7]
[422891910,1779583848000,-931.0,0.0002807,2]
[422891911,1779583848000,-200.0,0.0002808,2]
[422891913,1779583848000,-200.0,0.0002808,2]
[422891915,1779583848000,-200.0,0.00028081,2]
[422891922,1779583848000,-153.86,0.0002813,7]
[422891912,1779583848000,-200.0,0.0002808,2]
[422891919,1779583848000,-153.82,0.00028085,2]
[422891977,1779583849000,-177.82278193,0.00028617,7]
[422891968,1779583849000,-242.15909246,0.00028596,2]
[422891972,1779583849000,-167.49904402,0.00028617,7]
[422891966,1779583849000,-803.0,0.00028542,30]
[422891964,1779583849000,-850.0,0.00028542,30]
[422891959,1779583849000,-2386.07,0.00028533,7]
[422891970,1779583849000,-251.11897888,0.00028596,2]
[422891967,1779583849000,-1712.93078311,0.00028596,2]
[422891969,1779583849000,-200.0,0.00028596,2]
[422891989,1779583849000,-155.12018322,0.00028621,7]
[422891973,1779583849000,-177.51403088,0.00028617,7]
[422891976,1779583849000,-319.28063329,0.00028617,7]
[422891978,1779583849000,-320.9537152,0.00028617,7]
[422891974,1779583849000,-258.25023745,0.00028617,7]
[422891975,1779583849000,-173.3540343,0.00028617,2]
[422891980,1779583849000,-165.62391073,0.00028617,7]
[422891981,1779583849000,-172.60224148,0.00028617,7]
[422891988,1779583849000,-161.58179938,0.00028621,7]
[422891987,1779583849000,-153.12494833,0.0002862,7]
[422891958,1779583849000,-1075.22,0.00028533,7]
[422891971,1779583849000,-198.0203782,0.00028617,7]
[422891965,1779583849000,-850.0,0.00028542,30]
[422891942,1779583849000,-200.0,0.00028361,2]
[422891957,1779583849000,-159.62836136,0.000285,3]
[422891982,1779583849000,-186.95853436,0.0002862,7]
[422891940,1779583849000,-236.0,0.00028315,120]
[422891938,1779583849000,-280.0,0.00028315,120]
[422891939,1779583849000,-150.0,0.00028315,120]
[422891941,1779583849000,-200.0,0.00028361,2]
[422891943,1779583849000,-1805.86151176,0.00028369,2]
[422891944,1779583849000,-1075.22,0.00028373,30]
[422891945,1779583849000,-2386.07,0.00028373,30]
[422891949,1779583849000,-700.0,0.00028486,60]
[422891948,1779583849000,-480.70188401,0.00028486,60]
[422891963,1779583849000,-850.0,0.00028542,30]
[422891955,1779583849000,-261.0,0.00028486,60]
[422891951,1779583849000,-250.0,0.00028486,60]
[422891947,1779583849000,-709.0,0.00028411,5]
[422891950,1779583849000,-500.0,0.00028486,60]
[422891946,1779583849000,-1868.43,0.00028373,30]
[422891953,1779583849000,-159.0,0.00028486,60]
[422891954,1779583849000,-150.0,0.00028486,60]
[422891956,1779583849000,-151.0,0.000285,2]
[422891960,1779583849000,-1868.43,0.00028533,7]
[422891961,1779583849000,-850.0,0.00028542,30]
[422891962,1779583849000,-850.0,0.00028542,30]
[422891952,1779583849000,-250.0,0.00028486,60]
[422891984,1779583849000,-153.1644356,0.0002862,7]
[422892015,1779583849000,-650.0,0.00028855,30]
[422891985,1779583849000,-153.86021641,0.0002862,7]
[422892009,1779583849000,-750.0,0.00028855,30]
[422892012,1779583849000,-750.0,0.00028855,30]
[422892016,1779583849000,-650.0,0.00028855,30]
[422892027,1779583849000,-5000.0,0.00028925,2]
[422892024,1779583849000,-150.0,0.00028897,2]
[422892019,1779583849000,-154.0,0.00028875,120]
[422892018,1779583849000,-463.0,0.00028855,30]
[422892021,1779583849000,-300.0,0.00028875,120]
[422892020,1779583849000,-300.0,0.00028875,120]
[422892026,1779583849000,-5000.0,0.00028925,2]
[422892017,1779583849000,-650.0,0.00028855,30]
[422892022,1779583849000,-213.0,0.00028875,120]
[422892023,1779583849000,-4502.0,0.00028875,120]
[422892029,1779583849000,-5000.0,0.00028925,2]
[422892033,1779583849000,-152.57,0.00029,2]
[422892028,1779583849000,-5000.0,0.00028925,2]
[422892031,1779583849000,-709.0,0.00028965,6]
[422892030,1779583849000,-7287.6095528,0.00028925,2]
[422892032,1779583849000,-152.57,0.00029,2]
[422892034,1779583849000,-2384.7147583,0.00029,2]
[422892035,1779583849000,-1534.31728252,0.00029,2]
[422892011,1779583849000,-750.0,0.00028855,30]
[422892008,1779583849000,-750.0,0.00028855,30]
[422892025,1779583849000,-1000.0,0.000289,10]
[422892013,1779583849000,-597.0,0.00028855,30]
[422891979,1779583849000,-240.45068162,0.00028617,7]
[422892014,1779583849000,-650.0,0.00028855,30]
[422891993,1779583849000,-2000.0,0.00028624,2]
[422891990,1779583849000,-156.79630209,0.00028621,7]
[422891992,1779583849000,-10000.0,0.00028624,2]
[422891995,1779583849000,-154.14161274,0.00028642,7]
[422891994,1779583849000,-1988.0505,0.00028624,2]
[422892000,1779583849000,-2386.07,0.00028693,2]
[422892001,1779583849000,-1868.43,0.00028693,2]
[422891991,1779583849000,-2000.0,0.00028624,2]